{"text_format":"1","workbook":"xlsx","n_sheets":2,"sheets":["сведения о заемщике","Лист2"],"not_rendered":{"charts":0,"images":0,"macros":1,"external_links":0,"defined_names":4,"comments":1,"pivot_tables":0},"unopened":[],"bounds":{"document_bytes":16777216,"sheet_cells":100000,"rows_first":2000,"rows_last":500,"rows_between":2000,"halvings":0,"cell_chars":16384,"cell_head_chars":4096},"cells_cut":0,"cells_raw":0,"read":"whole","date_system":"1900"}

{"sheet":"сведения о заемщике","index":0,"n_rows":188,"n_cols":23,"rows_kept":188,"cut":false,"hidden":false,"merged":[[155,2,155,7],[156,2,156,7],[157,2,157,7],[158,2,158,7],[159,2,159,7],[160,2,160,7],[161,2,161,7],[162,2,162,7],[163,2,163,7],[85,7,85,8],[174,9,174,10],[45,6,45,10],[45,0,45,5],[66,0,66,14],[84,9,84,10],[85,9,85,10],[67,11,67,12],[68,11,68,12],[69,11,69,12],[70,11,70,12],[71,11,71,12],[72,11,72,12],[73,11,73,12],[74,11,74,12],[75,11,75,12],[76,11,76,12],[77,11,77,12],[78,11,78,12],[79,11,79,12],[80,11,80,12],[72,9,72,10],[73,9,73,10],[74,9,74,10],[75,9,75,10],[81,11,81,12],[82,11,82,12],[83,11,83,12],[84,11,84,12],[85,11,85,12],[76,9,76,10],[77,9,77,10],[78,9,78,10],[79,9,79,10],[80,9,80,10],[81,9,81,10],[82,9,82,10],[83,9,83,10],[46,5,46,7],[47,5,47,7],[48,5,48,7],[49,5,49,7],[50,5,50,7],[51,5,51,7],[52,5,52,7],[53,5,53,7],[54,5,54,7],[55,5,55,7],[56,5,56,7],[57,5,57,7],[58,5,58,7],[81,0,81,6],[82,0,82,6],[83,0,83,6],[64,0,64,2],[64,3,64,4],[58,0,58,2],[58,3,58,4],[55,0,55,2],[55,3,55,4],[56,0,56,2],[56,3,56,4],[57,0,57,2],[57,3,57,4],[61,0,61,2],[61,3,61,4],[62,0,62,2],[62,3,62,4],[63,0,63,2],[63,3,63,4],[59,5,59,7],[60,5,60,7],[61,5,61,7],[62,5,62,7],[63,5,63,7],[59,0,59,2],[59,3,59,4],[60,0,60,2],[60,3,60,4],[65,11,65,12],[62,11,62,12],[59,11,59,12],[65,13,65,14],[65,5,65,7],[67,0,67,6],[68,0,68,6],[69,0,69,6],[70,0,70,6],[71,0,71,6],[67,7,67,8],[68,7,68,8],[69,7,69,8],[70,7,70,8],[71,7,71,8],[65,0,65,2],[65,3,65,4],[65,8,65,10],[67,9,67,10],[68,9,68,10],[69,9,69,10],[70,9,70,10],[71,9,71,10],[62,13,62,14],[63,8,63,10],[63,11,63,12],[63,13,63,14],[64,8,64,10],[64,11,64,12],[64,13,64,14],[64,5,64,7],[62,8,62,10],[84,0,84,6],[85,0,85,6],[72,7,72,8],[73,7,73,8],[74,7,74,8],[75,7,75,8],[76,7,76,8],[77,7,77,8],[78,7,78,8],[72,0,72,6],[73,0,73,6],[74,0,74,6],[75,0,75,6],[76,0,76,6],[77,0,77,6],[78,0,78,6],[79,0,79,6],[80,0,80,6],[79,7,79,8],[80,7,80,8],[81,7,81,8],[82,7,82,8],[83,7,83,8],[84,7,84,8],[59,13,59,14],[60,8,60,10],[60,11,60,12],[60,13,60,14],[61,8,61,10],[61,11,61,12],[61,13,61,14],[56,8,56,10],[56,11,56,12],[56,13,56,14],[57,8,57,10],[57,11,57,12],[57,13,57,14],[58,8,58,10],[58,11,58,12],[58,13,58,14],[59,8,59,10],[53,8,53,10],[53,11,53,12],[53,13,53,14],[54,8,54,10],[54,11,54,12],[54,13,54,14],[55,8,55,10],[55,11,55,12],[55,13,55,14],[50,8,50,10],[50,11,50,12],[50,13,50,14],[51,8,51,10],[51,11,51,12],[51,13,51,14],[52,8,52,10],[52,11,52,12],[52,13,52,14],[46,8,47,10],[46,11,46,12],[46,13,46,14],[47,11,47,12],[47,13,47,14],[48,8,48,10],[48,11,48,12],[48,13,48,14],[49,8,49,10],[49,11,49,12],[49,13,49,14],[52,3,52,4],[53,0,53,2],[53,3,53,4],[54,0,54,2],[54,3,54,4],[49,0,49,2],[49,3,49,4],[50,0,50,2],[50,3,50,4],[51,0,51,2],[51,3,51,4],[91,0,91,12],[46,0,47,2],[46,3,46,4],[47,3,47,4],[48,0,48,2],[48,3,48,4],[43,0,43,14],[183,0,183,4],[183,5,183,14],[180,0,180,4],[181,0,181,4],[182,0,182,4],[180,5,180,14],[181,5,181,14],[182,5,182,14],[167,0,167,4],[167,5,167,10],[167,11,167,14],[168,0,168,4],[169,0,169,4],[170,0,170,4],[171,0,171,4],[168,5,168,10],[52,0,52,2],[92,13,92,14],[99,12,99,14],[98,0,98,1],[98,2,98,3],[98,4,98,7],[98,8,98,11],[98,12,98,14],[93,0,93,14],[94,2,97,3],[94,12,97,14],[94,4,97,7],[94,8,97,11],[150,0,150,6],[143,13,143,14],[144,13,144,14],[145,13,145,14],[146,13,146,14],[147,13,147,14],[149,13,149,14],[110,0,149,6],[139,9,139,10],[140,9,140,10],[117,13,117,14],[118,13,118,14],[143,11,143,12],[131,11,131,12],[132,11,132,12],[133,11,133,12],[134,11,134,12],[135,11,135,12],[136,11,136,12],[137,11,137,12],[138,11,138,12],[139,11,139,12],[141,11,141,12],[148,7,148,14],[146,7,146,8],[37,0,37,14],[38,2,38,9],[38,0,38,1],[39,0,39,1],[40,0,40,1],[41,0,41,1],[42,0,42,1],[39,2,39,9],[40,2,40,9],[41,2,41,9],[42,2,42,9],[38,11,38,12],[41,11,41,12],[42,11,42,12],[39,13,39,14],[40,13,40,14],[41,13,41,14],[42,13,42,14],[38,13,38,14],[39,11,39,12],[40,11,40,12],[92,0,92,12],[91,13,91,14],[149,7,149,8],[149,9,149,10],[134,13,134,14],[135,13,135,14],[136,13,136,14],[137,13,137,14],[138,13,138,14],[139,13,139,14],[140,13,140,14],[141,13,141,14],[142,13,142,14],[149,11,149,12],[144,11,144,12],[145,11,145,12],[146,11,146,12],[147,11,147,12],[146,9,146,10],[147,9,147,10],[137,9,137,10],[138,9,138,10],[143,9,143,10],[134,7,134,8],[142,11,142,12],[142,9,142,10],[102,4,102,7],[102,8,102,11],[102,12,102,14],[100,8,100,11],[100,12,100,14],[121,13,121,14],[122,13,122,14],[103,4,103,7],[103,8,103,11],[104,0,104,14],[105,0,105,6],[105,7,105,14],[106,0,106,6],[106,7,106,14],[107,0,107,6],[107,7,107,14],[120,13,120,14],[116,7,116,8],[111,11,111,12],[112,11,112,12],[113,11,113,12],[114,11,114,12],[116,11,116,12],[111,13,111,14],[135,7,135,8],[144,9,144,10],[145,9,145,10],[128,9,128,10],[128,7,128,8],[132,13,132,14],[133,13,133,14],[140,11,140,12],[129,11,129,12],[130,11,130,12],[129,9,129,10],[130,9,130,10],[131,9,131,10],[132,9,132,10],[133,9,133,10],[134,9,134,10],[135,9,135,10],[136,9,136,10],[128,13,128,14],[129,13,129,14],[130,13,130,14],[131,13,131,14],[128,11,128,12],[132,7,132,8],[133,7,133,8],[143,7,143,8],[144,7,144,8],[141,9,141,10],[145,7,145,8],[147,7,147,8],[111,9,111,10],[112,9,112,10],[113,9,113,10],[114,9,114,10],[115,9,115,10],[116,9,116,10],[117,9,117,10],[118,9,118,10],[119,9,119,10],[120,9,120,10],[121,9,121,10],[122,9,122,10],[123,9,123,10],[124,9,124,10],[125,9,125,10],[126,9,126,10],[127,9,127,10],[125,7,125,8],[30,9,30,14],[129,7,129,8],[130,7,130,8],[131,7,131,8],[123,13,123,14],[124,13,124,14],[125,13,125,14],[126,13,126,14],[127,13,127,14],[123,11,123,12],[124,11,124,12],[125,11,125,12],[126,11,126,12],[127,11,127,12],[86,0,86,14],[103,0,103,1],[103,2,103,3],[101,0,101,1],[101,2,101,3],[101,4,101,7],[101,8,101,11],[101,12,101,14],[30,0,30,8],[31,0,31,6],[18,0,18,14],[23,0,23,13],[24,0,24,14],[19,0,19,13],[22,0,22,13],[20,0,20,13],[21,0,21,13],[25,0,25,1],[25,2,25,8],[25,9,25,14],[26,0,26,1],[27,0,27,1],[28,0,28,1],[29,0,29,1],[26,2,26,8],[27,2,27,8],[28,2,28,8],[29,2,29,8],[26,9,26,14],[27,9,27,14],[28,9,28,14],[29,9,29,14],[15,11,15,14],[16,11,16,14],[1,0,1,14],[2,0,2,14],[5,0,5,11],[5,12,5,14],[7,0,7,8],[8,0,8,8],[10,0,10,8],[7,9,7,14],[8,9,8,14],[10,9,10,14],[9,0,9,8],[9,9,9,14],[31,7,31,12],[31,13,31,14],[32,0,32,6],[32,7,32,12],[32,13,32,14],[11,0,11,14],[6,0,6,14],[13,0,13,2],[14,0,14,2],[12,0,12,7],[13,3,13,7],[14,3,14,7],[15,0,15,2],[16,0,16,2],[15,3,15,7],[16,3,16,7],[13,8,13,10],[14,8,14,10],[15,8,15,10],[16,8,16,10],[12,8,12,14],[13,11,13,14],[14,11,14,14],[17,0,17,2],[33,0,34,2],[33,3,33,6],[33,7,33,12],[33,13,33,14],[34,3,34,6],[34,7,34,12],[34,13,34,14],[103,12,103,14],[94,0,97,1],[99,0,99,1],[99,2,99,3],[99,4,99,7],[99,8,99,11],[100,0,100,1],[100,2,100,3],[100,4,100,7],[35,7,35,12],[35,13,35,14],[36,7,36,12],[36,13,36,14],[35,0,35,6],[36,0,36,6],[102,0,102,1],[102,2,102,3],[112,13,112,14],[113,13,113,14],[114,13,114,14],[115,13,115,14],[116,13,116,14],[109,0,109,6],[110,13,110,14],[110,11,110,12],[110,9,110,10],[110,7,110,8],[111,7,111,8],[112,7,112,8],[113,7,113,8],[114,7,114,8],[139,7,139,8],[140,7,140,8],[141,7,141,8],[142,7,142,8],[121,11,121,12],[122,11,122,12],[109,7,109,14],[150,7,150,14],[115,7,115,8],[117,7,117,8],[118,7,118,8],[119,7,119,8],[120,7,120,8],[121,7,121,8],[122,7,122,8],[123,7,123,8],[124,7,124,8],[136,7,136,8],[119,13,119,14],[120,11,120,12],[117,11,117,12],[118,11,118,12],[119,11,119,12],[115,11,115,12],[169,5,169,10],[170,5,170,10],[171,5,171,10],[173,9,173,10],[175,9,175,10],[126,7,126,8],[127,7,127,8],[156,13,156,14],[157,13,157,14],[158,13,158,14],[159,13,159,14],[165,11,165,14],[174,0,174,8],[173,0,173,8],[151,0,151,14],[152,0,152,6],[152,7,152,14],[153,0,153,6],[153,7,153,14],[154,0,154,14],[160,13,160,14],[155,13,155,14],[137,7,137,8],[138,7,138,8],[161,13,161,14],[164,2,164,7],[173,11,175,14],[110,22,149,25],[0,12,0,14],[178,0,178,12],[179,0,179,12],[176,13,176,14],[177,13,177,14],[178,13,178,14],[179,13,179,14],[166,0,166,14],[162,13,162,14],[163,13,163,14],[164,13,164,14],[169,11,169,14],[170,11,170,14],[171,11,171,14],[172,0,172,14],[165,0,165,7],[44,0,44,14],[175,0,175,8],[176,0,176,12],[177,0,177,12],[17,3,17,7],[17,8,17,10],[17,11,17,14],[184,0,184,14],[185,0,185,14],[186,0,186,14],[187,0,187,14],[90,7,90,9],[90,10,90,12],[108,0,108,6],[108,7,108,14],[87,13,87,14],[89,13,89,14],[90,13,90,14],[87,7,87,9],[89,7,89,9],[87,10,87,12],[89,10,89,12],[87,0,88,6],[88,13,88,14],[89,0,90,6],[88,7,88,9],[88,10,88,12],[168,11,168,14]]}
[]
["Заявка №"]
["на получение поручительства"]
["г.Краснодар",null,null,null,null,null,null,null,null,null,null,null,null,null,"\"__\"_________",null,null,null,null,null,null,null,"ДАТУ И НОМЕР  СТАВИТ СОТРУДНИК ФОНДА ПРИ ПОЛУЧЕНИИ ПАКЕТА ДОКУМЕНТОВ"]
["Просим Вас предоставить Поручительство по кредиту (банковской гарантии), учитывая нижеуказанную информацию о Заемщике (Принципале):"]
["Обращение в Фонд развития бизнеса Краснодарского края",null,null,null,null,null,null,null,null,null,null,null,"Первое",null,null,null,"Первое"]
["1. Сведения об организации-Заемщике (Принципале):",null,null,null,null,null,null,null,null,null,null,null,null,null,null,null,"Повторное"]
["Полное наименование организации в соответствии с учредительными документами "]
["Идентификационный номер налогоплательщика (ИНН) "]
["Основной государственный регистрационный номер (ОГРН)"]
["Дата регистрации: "]
["2. Адрес организации Заемщика (Принципала)"]
["Юридический",null,null,null,null,null,null,null,"Фактический"]
["Муниципальный район: ",null,null,null,null,null,null,null,"Муниципальный район: "]
["Населенный пункт: ",null,null,null,null,null,null,null,"Населенный пункт: "]
["Улица ",null,null,null,null,null,null,null,"Улица "]
["№ дома",null,null,null,null,null,null,null,"№ дома"]
["№ офиса (кв.)",null,null,null,null,null,null,null,"№ офиса (кв.)"]
["3. Основные учредители  (акционеры, участники), владеющие более 5% акций (долей) в Уставном капитале организации- Заемщике (Принципале)"]
["ФИО/Наименование юр.лица",null,null,null,null,null,null,null,null,null,null,null,null,null,"Доля, в %"]
[]
[]
[]
["ПУСТЫЕ СТРОКИ СКРЫТЬ!!!!"]
["4. Сведения о руководителях организации-заемщика (принципала), уполномоченных заключать кредитные и обеспечивающие договоры (договоры банковской гарантии), главном бухгалтере (при наличии)"]
["Должность",null,"ФИО",null,null,null,null,null,null,"Контактная информация (телефон, электронная почта и т.п.)"]
[null,null,null,null,null,null,null,null,null,null,null,null,null,null,null,"директор"]
[null,null,null,null,null,null,null,null,null,null,null,null,null,null,null,"генеральный директор"]
[null,null,null,null,null,null,null,null,null,null,null,null,null,null,null,"главный бухгалтер"]
[null,null,null,null,null,null,null,null,null,null,null,null,null,null,null,"бухгалтер"]
["ПУСТЫЕ СТРОКИ СКРЫТЬ!!!!",null,null,null,null,null,null,null,null,null,null,null,null,null,null,"прочее"]
["5. Режим налогообложения",null,null,null,null,null,null,"Виды деятельности Заемщика (Принципала) с указанием ОКВЭД",null,null,null,null,null,"Доля в доходе (%)"]
["Общая система налогообложения ",null,null,null,null,null,null,"-",null,null,null,null,null,"-",null,null,null,null,null,null,null,null,"УКАЗЫВАЮТСЯ ВСЕ ВИДЫ В СООТВЕТСТВИИ С ВЫПИСКОЙ ИЗ ЕГРЮЛ/ЕГРИП"]
["Упрощенная система налогообложения ",null,null," Доходы  6%",null,null,null,"-",null,null,null,null,null,"-"]
[null,null,null,"Доходы – расходы  15%",null,null,null,"-",null,null,null,null,null,"-"]
["Единый налог на вмененный доход",null,null,null,null,null,null,"-",null,null,null,null,null,"-"]
["Единый сельскохозяйственный налог ",null,null,null,null,null,null,"-",null,null,null,null,null,"-"]
["6. Характеристика площадей, занимаемых организацией-заемщиком (принципалом)"]
["Назначение",null,"Адрес",null,null,null,null,null,null,null,"Площадь, кв.м.","Вид права",null,"Срок окончания договора аренды/безвозмездного пользования"]
[null,null,null,null,null,null,null,null,null,null,null,"Собственность",null,null,null,"Торговое","Собственность"]
[null,null,null,null,null,null,null,null,null,null,null,"Собственность",null,null,null,"Офисное","Аренда"]
[null,null,null,null,null,null,null,null,null,null,null,"Аренда",null,null,null,"Складское","Безвозмездное пользование"]
[null,null,"ПУСТЫЕ СТРОКИ СКРЫТЬ!!!",null,null,null,null,null,null,null,null,"Безвозмездное пользование",null,null,null,"Производственное"]
["7. Краткое описание бизнеса ( с указанием фактических собственников бизнеса и фактических видов деятельности)",null,null,null,null,null,null,null,null,null,null,null,null,null,null,"Прочее"]
[]
["8. Баланс",null,null,null,null,null,"составлен на основании официальной отчетности",null,null,null,null,", тыс. руб.",null,null,null,"ссоставлен на основании управленческой отчетности",null,null,null,null,null,null,"ЗАПОЛНЯЕТСЯ ТОЛЬКО ПО ЗАЕМЩИКУ!"]
["АКТИВ",null,null," Отчетная дата",null,"Доля в балансе",null,null,"ПАССИВ",null,null,"Отчетная дата",null,"Доля в балансе",null,"составлен на основании официальной отчетности",null,null,null,null,null,null,"ДАННЫЕ ДОЛЖНЫ СОВПАДАТЬ С ИНФОРМАЦИЕЙ О СООТВЕТСТВИИ ЗАЕМЩИКА КРИЕТРИЯМ ОТНЕСЕНИЯ К СУБЪЕКТАМ МСП"]
[null,null,null,"2019-01-01",null,"%",null,null,null,null,null,{"$f":"D48","v":"2019-01-01"},null,"%"]
["ОБОРОТНЫЕ АКТИВЫ",null,null,{"$f":"D50+D54+D58","v":0},null,{"$f":"D49/$D$66","v":{"$error":"#DIV/0!"}},null,null,"ТЕКУЩИЕ ОБЯЗАТЕЛЬСТВА",null,null,{"$f":"L50+L55+L58+L60","v":0},null,{"$f":"L49/$L$66","v":{"$error":"#DIV/0!"}}]
["ЛИКВИДНЫЕ СРЕДСТВА",null,null,{"$f":"SUM(D51:E53)","v":0},null,{"$error":"#DIV/0!"},null,null,"КРАТКОСРОЧНЫЕ ОБЯЗАТЕЛЬСТВА",null,null,{"$f":"SUM(L51:M54)","v":0},null,{"$error":"#DIV/0!"}]
["Касса",null,null,0,null,{"$error":"#DIV/0!"},null,null,"Расчеты с бюджетом",null,null,0,null,{"$error":"#DIV/0!"}]
["Расчетный счет",null,null,0,null,{"$error":"#DIV/0!"},null,null,"Задолженность по заработной плате",null,null,0,null,{"$error":"#DIV/0!"}]
["Другое (расшифровать)",null,null,0,null,{"$error":"#DIV/0!"},null,null,"Аренда и коммунальные платежи",null,null,0,null,{"$error":"#DIV/0!"}]
["ДЕБИТОРСКАЯ ЗАДОЛЖЕННОСТЬ",null,null,{"$f":"SUM(D55:E57)","v":0},null,{"$error":"#DIV/0!"},null,null,"Прочие краткосрочные обязательства",null,null,0,null,{"$error":"#DIV/0!"}]
["Покупатели и заказчики",null,null,0,null,{"$error":"#DIV/0!"},null,null,"КРЕДИТОРСКАЯ ЗАДОЛЖЕННОСТЬ",null,null,{"$f":"SUM(L56:M57)","v":0},null,{"$error":"#DIV/0!"}]
["Авансы выданные",null,null,0,null,{"$error":"#DIV/0!"},null,null,"Поставщики и подрядчики",null,null,0,null,{"$error":"#DIV/0!"}]
["Другое (расшифровать)",null,null,0,null,{"$error":"#DIV/0!"},null,null,"Авансы полученные ",null,null,0,null,{"$error":"#DIV/0!"}]
["ТОВАРЫ И ЗАПАСЫ",null,null,{"$f":"SUM(D59:E61)","v":0},null,{"$error":"#DIV/0!"},null,null,"КРАТКОСРОЧНЫЕ КРЕДИТЫ И ЗАЙМЫ",null,null,{"$f":"SUM(L59)","v":0},null,{"$error":"#DIV/0!"}]
["Сырье и полуфабрикаты",null,null,0,null,{"$error":"#DIV/0!"},null,null,"Краткосрочные кредиты и займы",null,null,0,null,{"$error":"#DIV/0!"}]
["Готовая продукция",null,null,0,null,{"$error":"#DIV/0!"},null,null,"ДОЛГОСРОЧНЫЕ ОБЯЗАТЕЛЬСТВА",null,null,{"$f":"SUM(L61:M62)","v":0},null,{"$error":"#DIV/0!"}]
["Товары для перепродажи",null,null,0,null,{"$error":"#DIV/0!"},null,null,"Долгосрочные кредиты и займы",null,null,0,null,{"$error":"#DIV/0!"}]
["ВНЕОБОРОТНЫЕ АКТИВЫ",null,null,{"$f":"SUM(D63:E65)","v":0},null,{"$error":"#DIV/0!"},null,null,"Прочие долгосрочные обязательства",null,null,0,null,{"$error":"#DIV/0!"}]
["Оборудование и мебель",null,null,0,null,{"$error":"#DIV/0!"},null,null,"СОБСТВЕННЫЙ КАПИТАЛ",null,null,{"$f":"SUM(L64:M65)","v":0},null,{"$error":"#DIV/0!"}]
["Транспортные средства",null,null,0,null,{"$error":"#DIV/0!"},null,null,"Уставный капитал",null,null,0,null,{"$error":"#DIV/0!"}]
["Недвижимость",null,null,0,null,{"$error":"#DIV/0!"},null,null,"Реинвестированная прибыль",null,null,0,null,{"$error":"#DIV/0!"}]
["ИТОГО АКТИВЫ",null,null,{"$f":"SUM(D49+D62)","v":0},null,{"$error":"#DIV/0!"},null,null,"ИТОГО ПАССИВЫ",null,null,{"$f":"L49+L63","v":0},null,{"$f":"N49+N63","v":{"$error":"#DIV/0!"}}]
["9. Отчет о прибылях и убытках,  тыс. руб."]
["Статьи",null,null,null,null,null,null,{"$f":"J68-30","v":"2018-10-03"},null,{"$f":"L68-30","v":"2018-11-02"},null,{"$f":"D48-30","v":"2018-12-02"},null,"Итого за 3 мес.","Среденемесячное значение",null,null,null,null,null,null,null,"ЗАПОЛНЯЕТСЯ ТОЛЬКО ПО ЗАЕМЩИКУ"]
["Выручка (поступление средств) от основной деятельности (по видам деятельности).",null,null,null,null,null,null,null,null,null,null,null,null,{"$f":"SUM(H69:M69)","v":0},{"$f":"N69/3","v":0}]
["Прочие доходы",null,null,null,null,null,null,null,null,null,null,null,null,{"$f":"SUM(H70:M70)","v":0},{"$f":"N70/3","v":0}]
["ИТОГО выручка  ",null,null,null,null,null,null,{"$f":"H69+H70","v":0},null,{"$f":"J69+J70","v":0},null,{"$f":"L69+L70","v":0},null,0,0]
["Себестоимость реализованных товаров, продукции и услуг ",null,null,null,null,null,null,null,null,null,null,null,null,0,0]
["Реклама",null,null,null,null,null,null,null,null,null,null,null,null,0,0]
["Транспортные расходы",null,null,null,null,null,null,null,null,null,null,null,null,0,0]
["Страхование, бухгалтерские и юридические услуги",null,null,null,null,null,null,null,null,null,null,null,null,0,0]
["Заработная плата, включая налоги",null,null,null,null,null,null,null,null,null,null,null,null,0,0]
["Аренда, коммунальные услуги, телефон",null,null,null,null,null,null,null,null,null,null,null,null,0,0]
["Представительские расходы",null,null,null,null,null,null,null,null,null,null,null,null,0,0]
["Налоги",null,null,null,null,null,null,null,null,null,null,null,null,0,0]
["Обслуживание ранее полученных кредитов и займов (ПРОЦЕНТЫ)",null,null,null,null,null,null,null,null,null,null,null,null,0,0]
["Прочее",null,null,null,null,null,null,null,null,null,null,null,null,0,0]
["ИТОГО расходы (4+5+6+...+12)",null,null,null,null,null,null,{"$f":"SUM(H72:I81)","v":0},null,{"$f":"SUM(J72:K81)","v":0},null,{"$f":"SUM(L72:M81)","v":0},null,0,0]
["ЧИСТАЯ ПРИБЫЛЬ (3-13)",null,null,null,null,null,null,{"$f":"H71-H82","v":0},null,{"$f":"J71-J82","v":0},null,{"$f":"L71-L82","v":0},null,0,0]
["Расходы на личные нужды заёмщика",null,null,null,null,null,null,0,null,0,null,0,null,0,0]
["Расходы по погашению кредитов (ОСНОВНОЙ ДОЛГ)",null,null,null,null,null,null,0,null,0,null,0,null,0,0]
["Свободный остаток",null,null,null,null,null,null,{"$f":"H83-H84-H85","v":0},null,{"$f":"J83-J84-J85","v":0},null,{"$f":"L83-L84-L85","v":0},null,0,0]
["10. Прочая информация о бизнесе:"]
["Среднесписочная численность работников ",null,null,null,null,null,null,"**** г.",null,null,"****г.",null,null,"****г. ",null,null,null,null,null,null,null,null,"ДАННЫЕ ЗАПОЛНЯЮТСЯ ТОЛЬКО ПО ЗАЕМЩИКУ ЗА ПРЕДШЕСТВУЮЩИЕ ТРИ КАЛЕНДАРНЫХ ГОДА"]
[]
["Выручка от реализации товаров (работ, услуг) без учета налога на добавленную стоимость,  тыс. руб.",null,null,null,null,null,null,"**** г.",null,null,"****г.",null,null,"****г. ",null,null,null,null,null,null,null,null,"ДАННЫЕ ЗАПОЛНЯЮТСЯ ТОЛЬКО ПО ЗАЕМЩИКУ ЗА ПРЕДШЕСТВУЮЩИЕ ТРИ КАЛЕНДАРНЫХ ГОДА"]
[]
["Численность работников на текущую дату",null,null,null,null,null,null,null,null,null,null,null,null,null,null,"да",null,null,null,null,null,null,"ДАННЫЕ ДОЛЖНЫ СОВПАДАТЬ С ИНФОРМАЦИЕЙ О СООТВЕТСТВИИ ЗАЕМЩИКА КРИЕТРИЯМ ОТНЕСЕНИЯ К СУБЪЕКТАМ МСП"]
["Участие в судебных процессах за прошедший год (с момента обращения в Фонд) в качестве ответчика  и наличие не исполненных судебных решений",null,null,null,null,null,null,null,null,null,null,null,null,null,null,"нет"]
["11. Сведения о наличии действующих и действовавших за последние 180 календарных дней, предшествующих дате обращения за поручительством фонда, кредитных, факторинговых, лизинговых договоров, договоров займа, банковских гарантий, в т.ч. оформленных на Заемщика (Принципала) - индивидуального предпринимателя как на физическое лицо:"]
["Наименование кредитора, вид обязательства",null,"Сумма по договору, руб.",null,"Остаток задолженности на текущую дату, руб.",null,null,null,"Срок возврата по договору (либо дата фактического исполнения обязательств)",null,null,null,"Сумма и вид обеспечения (залог (указывается вид имущества - наименование, технические характеристики, год выпуска, собственник), поручительство, банковская гарантия, иное)"]
[]
[]
[]
[null,null,null,null,null,null,null,null,null,null,null,null,null,null,null,null,null,null,null,null,null,null,"ПО ВСЕМ УКАЗЫВАЕМЫМ ДОГОВОРАМ, КРОМЕ ОФОРМЛЕННЫХ КАК НА ФИЗ. ЛИЦО,  ПРИЛАГАЮТСЯ СПРАВКИ"]
[]
[]
[]
[null,null,null,null,"ПУСТЫЕ СТРОКИ СКРЫТЬ!!!"]
["Итого:",null,{"$f":"SUM(C99:D103)","v":0},null,{"$f":"SUM(E99:H103)","v":0}]
["12. Информация о предоставляемом кредите (банковской гарантии):",null,null,null,null,null,null,null,null,null,null,null,null,null,null,"Прочее",null,null,null,null,null,null,"ДАННЫЕ ДОЛЖНЫ СОВПАДАТЬ С ЗАКЛЮЧЕНИЕМ И ПРОТОКОЛОМ"]
["Вид кредита (банковской гарантии)",null,null,null,null,null,null,null,null,null,null,null,null,null,null,null,null,null,null,null,null,null,"указывается форма выдачи: \"ВКЛ\", \"НКЛ\", \"ОВЕРДРАФТ\", \"ЕДИНОВРЕМЕННЫЙ КРЕДИТ\"  И Т.П."]
["Сумма испрашиваемого кредита  (банковской гарантии), руб.:"]
["Предполагаемый срок кредита (кредитной линии):"]
["Предполагаемый срок договора поручительства:"]
["Проценты за пользование кредитом (вознаграждение за предоставление гарантии)"]
["График погашения",null,null,null,null,null,null,"№",null,"Погашение основного долга,  руб.",null,"Проценты, руб.",null,"Итого ежемесячный платеж, руб."]
[null,null,null,null,null,null,null,1,null,null,null,null,null,{"$f":"J112+L112","v":0}]
[null,null,null,null,null,null,null,2,null,null,null,null,null,{"$f":"J113+L113","v":0}]
[null,null,null,null,null,null,null,3,null,null,null,null,null,0]
[null,null,null,null,null,null,null,4,null,null,null,null,null,0]
[null,null,null,null,null,null,null,5,null,null,null,null,null,0]
[null,null,null,null,null,null,null,6,null,null,null,null,null,0]
[null,null,null,null,null,null,null,7,null,null,null,null,null,0]
[null,null,null,null,null,null,null,8,null,null,null,null,null,0]
[null,null,null,null,null,null,null,9,null,null,null,null,null,0]
[null,null,null,null,null,null,null,10,null,null,null,null,null,0]
[null,null,null,null,null,null,null,11,null,null,null,null,null,0]
[null,null,null,null,null,null,null,12,null,null,null,null,null,0]
[null,null,null,null,null,null,null,13,null,null,null,null,null,0]
[null,null,null,null,null,null,null,14,null,null,null,null,null,0]
[null,null,null,null,null,null,null,15,null,null,null,null,null,0]
[null,null,null,null,null,null,null,16,null,null,null,null,null,0]
[null,null,null,null,null,null,null,17,null,null,null,null,null,0]
[null,null,null,null,null,null,null,18,null,null,null,null,null,0]
[null,null,null,null,null,null,null,19,null,null,null,null,null,0]
[null,null,null,null,null,null,null,20,null,null,null,null,null,0]
[null,null,null,null,null,null,null,21,null,null,null,null,null,0]
[null,null,null,null,null,null,null,22,null,null,null,null,null,0]
[null,null,null,null,null,null,null,23,null,null,null,null,null,0]
[null,null,null,null,null,null,null,24,null,null,null,null,null,0]
[null,null,null,null,null,null,null,25,null,null,null,null,null,0]
[null,null,null,null,null,null,null,26,null,null,null,null,null,0]
[null,null,null,null,null,null,null,27,null,null,null,null,null,0]
[null,null,null,null,null,null,null,28,null,null,null,null,null,0]
[null,null,null,null,null,null,null,29,null,null,null,null,null,0]
[null,null,null,null,null,null,null,30,null,null,null,null,null,0]
[null,null,null,null,null,null,null,31,null,null,null,null,null,0]
[null,null,null,null,null,null,null,32,null,null,null,null,null,0]
[null,null,null,null,null,null,null,33,null,null,null,null,null,0]
[null,null,null,null,null,null,null,34,null,null,null,null,null,0]
[null,null,null,null,null,null,null,35,null,null,null,null,null,0]
[null,null,null,null,null,null,null,36,null,null,null,null,null,0]
[null,null,null,null,null,null,null,37,null,null,null,null,null,0]
[null,null,null,null,null,null,null,"ПУСТЫЕ СТРОКИ СКРЫТЬ!!!"]
[null,null,null,null,null,null,null,"Итого:",null,{"$f":"SUM(J112:K148)","v":0},null,{"$f":"SUM(L112:M148)","v":0},null,{"$f":"SUM(N112:O148)","v":0}]
["Прочие платежи и комиссии, сроки уплаты"]
["13. Информация о проекте"]
["Описание и цель проекта, обеспечиваемого  кредитом (в т.ч. с указанием направлений расходования и сумм) или банковской гарантией"]
["Общая стоимость проекта, руб."]
["14. Информация об имуществе Заемщика (Принципала), которое предоставлено в качестве залога:"]
["№ п/п","Вид залога","Наименование, технические характеристики, год выпуска",null,null,null,null,null,"Рыночная стоимость, руб.","Залоговый дисконт,%","Залоговая стоимость","Собственник","Последующий залог","Основание  оценки"]
[null,null,null,null,null,null,null,null,null,null,0,null,null,null,null,"недвижимость","да","отчет об оценке независимого оценщика",null,null,null,null,"ДЛЯ ИМУЩЕСТВА УКАЗЫВАЮТСЯ ИДЕНТИФИКАЦИОННЫЕ ПРИЗНАКИ (VIN, ГОС.НОМЕРА, АДРЕСА И Т.П. В ЗАВИСИМОСТИ ОТ ВИДА ИМУЩЕСТВА)"]
[null,null,null,null,null,null,null,null,null,null,{"$f":"I158*(1-J158)","v":0},null,null,null,null,"оборудование","нет","оценка кредитного специалиста"]
[null,null,null,null,null,null,null,null,null,null,0,null,null,null,null,"автотранспорт",null,"оценка залогового специалиста"]
[null,null,null,null,null,null,null,null,null,null,0,null,null,null,null,"спец.техника",null,"согласно бухгалтерскому учету залогодателя"]
[null,null,null,null,null,null,null,null,null,null,0,null,null,null,null,"ТМЦ"]
[null,null,null,null,null,null,null,null,null,null,0,null,null,null,null,"прочее"]
[null,null,null,null,null,null,null,null,null,null,0]
[null,null,null,null,null,null,null,null,null,null,0]
[null,null,"ПУСТЫЕ СТРОКИ СКРЫТЬ!!!",null,null,null,null,null,null,null,0]
["Итого:",null,null,null,null,null,null,null,{"$f":"SUM(I157:I165)","v":0},null,{"$f":"SUM(K157:K165)","v":0}]
["15. Информация о поручителях по сделке:"]
["ФИО",null,null,null,null,"Контактная информация",null,null,null,null,null,"Мотивы поручительства",null,null,null,null,null,null,null,null,null,null,"УКАЗЫВАЮТСЯ В СООТВЕТСТВИИ С ПРОТОКОЛОМ"]
[null,null,null,null,null,null,null,null,null,null,null,null,null,null,null,null,null,null,null,null,null,null,"ДЛЯ КАЖДОГО НЕОБХОДИМО ПРИЛОЖИТЬ СОГЛАСИЕ НА БКИ"]
[]
[]
["ПУСТЫЕ СТРОКИ СКРЫТЬ!!!"]
["16. Итоговые показатели сделки"]
["Соотношение собственного залогового обеспечения к сумме кредита (банковской гарантии)*",null,null,null,null,null,null,null,null,{"$f":"K166/H107","v":{"$error":"#DIV/0!"}},null," * В случае, если залог является последующим, в расчет обеспеченности собственным залогом принимается залоговая стоимость имущества, уменьшенная на величину основного долга на дату подачи заявки (максимального возможного лимита выдачи по договору) по каждому из предыдущих кредитов (займов). В случае, если одним и тем же залогом обеспечиваются 2 и более кредита (займа), выданные (выдаваемые) под поручительство Фонда, расчет обеспеченности проводится для общей суммы основного долга (максимально возможных лимитов выдачи по договорам) по кредитам (займам), обеспеченным одним и тем же залогом и поручительствами Фонда"]
["Сумма испрашиваемого поручительства Фонда"]
["Соотношение суммы поручительства Фонда к сумме кредита (банковской гарантии)",null,null,null,null,null,null,null,null,{"$f":"J175/H107","v":{"$error":"#DIV/0!"}}]
["Финансовое положение",null,null,null,null,null,null,null,null,null,null,null,null,null,null,"Хорошее","Хорошее"]
["Качество обслуживания долга",null,null,null,null,null,null,null,null,null,null,null,null,null,null,"Среднее","Среднее"]
["Категория качества ссуды/ПОС",null,null,null,null,null,null,null,null,null,null,null,null,null,null,"Плохое","Неудовлетворительное"]
["Процент резервирования"]
["Заключение службы безопасности Банка",null,null,null,null,null,null,null,null,null,null,null,null,null,null,null,"положительное",null,null,null,null,null,"УКАЗЫВАЮТСЯ ВЫВОДЫ ИЗ ЗАКЛЮЧЕНИЙ СЛУЖБ БАНКА "]
["Заключение залоговой службы Банка",null,null,null,null,null,null,null,null,null,null,null,null,null,null,null,"отрицательное"]
["Заключение юридической службы Банка",null,null,null,null,null,null,null,null,null,null,null,null,null,null,null,"не требуется"]
["Коэффициенты , характеризующие финансовое состояние Заемщика (Принципала), согласно методике Банка",null,null,null,null,"соответствуют методике кредитования субъектов МСП Банка",null,null,null,null,null,null,null,null,null,null,"соответствуют методике кредитования субъектов МСП Банка"]
["Настоящим документом Заемщик (Принципал) подтверждает, что он:\n1) зарегистрирован(а) и осуществляет деятельность на территории Краснодарского края не менее 6 (шести) месяцев;\n2) не имеет за последние 180 календарных дней, предшествующих дате подачи заявки на предоставление поручительства Фонда, случаев просроченных платежей продолжительностью (общей продолжительностью) свыше 5 календарных дней включительно по основному долгу и (или) процентам по ранее заключенным кредитным договорам, договорам займа (в том числе оформленных на субъекта МСП-индивидуального предпринимателя как на физическое лицо продолжительностью (общей продолжительностью) свыше 29 календарных дней), финансовой аренды (лизинга), договорам о предоставлении банковской гарантии, договорам факторинга и нарушений государственных контрактов (для организаций инфраструктуры поддержки); \n3) привлекает кредит (заемные средства) не в целях оплаты текущих расходов на обслуживание ранее взятых кредитов, займов (за исключением кредитов (займов), направляемых на рефинансирование ссудной задолженности (основного долга) в сторонней финансовой организации, за исключением получаемых с пониженной процентной ставкой относительно действующей и/или с увеличением срока возврата либо в той же финансовой организации, получаемых с пониженной процентной ставкой относительно действующей без изменения срока возврата, либо в той же финансовой организации, получаемых с пониженной процентной ставкой относительно действующей с дополнительным финансированием) и договоров лизинга, и не в целях, не связанных с осуществлением Заемщиком основной производственной деятельности;\n4) не является кредитной организацией, страховой организацией (за исключением потребительского кооператива), инвестиционным фондом, негосударственным пенсионным фондом, профессиональным участником рынка ценных бумаг, ломбардом;\n5) не является участником соглашений о разделе продукции;\n6) не осуществляет предпринимательскую деятельность в сфере игорного бизнеса;",null,null,null,null,null,null,null,null,null,null,null,null,null,null,null,"не соответствуют методике кредитования субъектов МСП Банка"]
["7) не является в порядке, установленном законодательством Российской Федерации о валютном регулировании и валютном контроле, нерезидентом Российской Федерации, за исключением случаев, предусмотренных международными договорами Российской Федерации;\n8) включен в установленном порядке в государственные программы (подпрограммы) Краснодарского края или муниципальные программы, содержащие мероприятия, направленные на развитие малого и среднего предпринимательства (для организаций инфраструктуры поддержки);\n9) соответствует критериям, применяемым Федеральным законом от 24 июля 2007 года № 209-ФЗ «О развитии малого и среднего предпринимательства в Российской Федерации» к малым предприятиям, в том числе к микропредприятиям, и средним предприятиям;\n\n\n"]
["10) предоставляет полный пакет достоверных документов, сведений и информации, определенных Фондом.\nБанк-партнер и Заемщик (Принципал) несут ответственность за предоставление ими недостоверной информации (документов) согласно действующему законодательству Российской Федерации. Банк не несет ответственности за предоставление  недостоверной информации (документов) Заемщиком (Принципалом).\nНастоящим Заемщик (Принципал) выражает свое согласие на получение кредитных отчетов из бюро кредитных историй в соответствии со статьей 6 Федерального закона № 218-ФЗ от 30.12.04 г. «О кредитных историях» АО «Национальное бюро кредитных историй» с целью рассмотрения вопроса и принятия решения о выдаче поручительства.\nНастоящим Заемщик (Принципал) выражает свое согласие на предоставление в любые государственные органы, органы государственной власти Российской Федерации и Краснодарского края, органы местного самоуправления по их запросам следующей информации о заемщике: (принципале) фамилия, имя, отчество/наименование; ОГРН, ИНН, данные о муниципальном образовании, в котором зарегистрирован заемщик (принципал); основной вид предпринимательской деятельности заемщика  (принципала);   данные о кредитном договоре/банковской гарантии, в обеспечение обязательств по которым заключен договор поручительства Фонда, в том числе: наименование кредитной организации, с которой заключен договор; срок действия договора; дата заключения; сумма по кредитному договору/банковской гарантии; данные о договоре поручительства, заключенном заемщиком  (принципалом) с Фондом в обеспечение кредитного договора/банковской гарантии, в том числе: дата заключения; срок действия договора; сумма поручительства; данные о просрочке исполнения обязательств по кредитному договору/банковской гарантии, в обеспечение которых заемщиком  (принципалом) заключен договор поручительства с Фондом (в случае наличия таковой).\nНа получение информационных сообщений об услугах, оказываемых Фондом развития бизнеса Краснодарского края,  [     ]   - согласен;    [     ] - не согласен.\n Информационные сообщения прошу присылать на\n     [     ] - e-mail , указанный в настоящей анкете;                                                                                                                \n     [     ] - телефон, указанный в настоящей анкете  (нужное отметить знаком V).\n"]
["Подписывая настоящую заявку на поручение поручительства, Заемщик предоставляет/не предоставляет (нужное подчеркнуть) Фонду развития бизнеса Краснодарского края (далее - Фонд)  право на передачу конфиденциальной информации, ставшей известной Фонду в процессе заключения и исполнения договора поручительства Фонда, в АО «Корпорация МСП» по запросу АО «Корпорация МСП» либо во исполнение положений законодательства Российской Федерации.\n\n\nОт Заемщика (Принципала):\nОбщество с ограниченной ответственностью «....»  \n             \nРуководитель\n_____________________ (__________________________)\n     (подпись, печать)  (ФИО)\n \n «Согласовано»:\nОт Банка-партнера:  _________________________________________\n               (полное наименование Банка-партнера)\n_______________________ (________________________)\n         (подпись, печать)        (ФИО)\n"]

{"sheet":"Лист2","index":1,"n_rows":0,"n_cols":0,"rows_kept":0,"cut":false,"hidden":false,"merged":[]}